lending/lending_fUSD_20240512
["ID","MTS","AMOUNT","RATE_DAILY","PERIOD"]
[326843813,1715508886057,-500.0,0.00041369,31]
[326843814,1715508886082,-500.0,0.00041369,31]
[326843815,1715508886107,-500.0,0.00041369,31]
[326843816,1715508886131,-500.0,0.00041369,31]
[326843817,1715508886154,-500.0,0.00041369,31]
[326843818,1715508886177,-500.0,0.00041369,31]
[326843819,1715508886202,-500.0,0.00041369,31]
[326843820,1715508886226,-500.0,0.00041369,31]
[326843821,1715508886250,-500.0,0.00041369,31]
[326843822,1715508886274,-500.0,0.00041369,31]
[326843823,1715508886299,-500.0,0.00041369,31]
[326843824,1715508886324,-500.0,0.00041369,31]
[326843825,1715508886348,-500.0,0.00041369,31]
[326843826,1715508886372,-500.0,0.00041369,31]
[326843827,1715508886396,-500.0,0.00041369,31]
[326843828,1715508886419,-500.0,0.00041369,31]
[326843829,1715508886441,-500.0,0.00041369,31]
[326843830,1715508886465,-500.0,0.00041369,31]
[326843831,1715508886488,-500.0,0.00041369,31]
[326843832,1715508886513,-500.0,0.00041369,31]
[326843833,1715508886537,-500.0,0.00041369,31]
[326843834,1715508886560,-500.0,0.00041369,31]
[326843835,1715508886584,-500.0,0.00041369,31]
[326843836,1715508886607,-500.0,0.00041369,31]
[326843837,1715508886631,-500.0,0.00041369,31]
[326843838,1715508886654,-500.0,0.00041369,31]
[326843839,1715508886678,-500.0,0.00041369,31]
[326843840,1715508886702,-500.0,0.00041369,31]
[326843841,1715508886725,-500.0,0.00041369,31]
[326843842,1715508886750,-500.0,0.00041369,31]
[326843843,1715508886773,-500.0,0.00041369,31]
[326843844,1715508886798,-500.0,0.00041369,31]
[326843845,1715508886822,-680.0,0.00041369,31]
[326843846,1715508886845,-609.23966803,0.00041369,120]
[326843847,1715508886868,-150.0,0.00041371,30]
[326843848,1715508886898,-1797.359,0.0004148,120]
[326843849,1715508886922,-179.09455871,0.0004148,120]
[326843850,1715508886946,-500.0,0.00041492,30]
[326843851,1715508886970,-500.0,0.00041492,30]
[326843852,1715508886996,-500.0,0.00041492,30]
[326843853,1715508887019,-500.0,0.00041492,30]
[326843854,1715508887042,-500.0,0.00041492,30]
[326843855,1715508887065,-500.0,0.00041492,30]
[326843856,1715508887089,-500.0,0.00041492,30]
[326843857,1715508887112,-560.0,0.00041492,30]
[326843858,1715508887135,-500.0,0.00041492,30]
[326843859,1715508887158,-500.0,0.00041492,30]
[326843860,1715508887182,-500.0,0.00041492,30]
[326843861,1715508887204,-500.0,0.00041492,30]
[326843862,1715508887228,-500.0,0.00041492,30]
[326843863,1715508887253,-500.0,0.00041492,30]
[326843864,1715508887277,-500.0,0.00041492,30]
[326843865,1715508887299,-778.0,0.00041492,30]
[326843866,1715508887323,-406.66515874,0.000415,60]
[326843867,1715508887347,-614.55643217,0.00041652,30]
[326843868,1715508887371,-399.99999901,0.00041654,31]
[326843869,1715508887394,-614.55643217,0.00041655,30]
[326843870,1715508887417,-290.70249138,0.00041655,30]
[326843871,1715508887441,-363.09977033,0.00041667,30]
[326843872,1715508887464,-150.0,0.00041667,30]
[326843873,1715508887488,-150.0,0.00041667,30]
[326843874,1715508887512,-150.0,0.00041667,30]
[326843875,1715508887736,-614.55643217,0.00041675,30]
[326843876,1715508887761,-1000.0,0.000417,120]
[326843877,1715508887785,-157.8239418,0.0004171,30]
[326843878,1715508887809,-295.82717257,0.00041725,30]
[326843879,1715508887835,-295.82717257,0.00041728,30]
[326843880,1715508887860,-290.70249138,0.00041745,30]
[326843881,1715508887886,-157.8239418,0.00041746,30]
[326843882,1715508887911,-157.8239418,0.00041782,30]
[326843883,1715508887937,-295.82717257,0.00041789,30]
[326843884,1715508887962,-290.70249138,0.00041792,30]
[326843885,1715508887986,-150.0,0.00041814,30]
[326843886,1715508888010,-180.000001,0.00041874,31]
[326843887,1715508888032,-255.56,0.0004188,120]
[326843888,1715508888055,-1197.9329,0.00041888,30]
[326843889,1715508888077,-159.14472711,0.000419,120]
[326843890,1715508888100,-5000.0,0.000419,120]
[326843891,1715508888124,-462.88227521,0.000419,120]
[326843892,1715508888149,-2623.84452362,0.00041978,51]
[326843893,1715508888172,-363.09977033,0.0004198,30]
[326843894,1715508888195,-3988.3994927,0.0004198,30]
[326843895,1715508888221,-50000.0,0.00042,32]
[326843896,1715508888245,-2085.56,0.00042,30]
[326843897,1715508888269,-1648.30187434,0.00042,30]
[326843898,1715508888292,-950.0,0.00042,120]
[326843899,1715508888315,-3199.0955511,0.00042,120]
[326843900,1715508888338,-2000.0,0.00042,30]
[326843901,1715508888361,-1050.34505296,0.00042,120]
[326843902,1715508888385,-1053.0,0.00042,120]
[326843903,1715508888408,-500.0,0.00042,30]
[326843904,1715508888430,-983.0,0.00042,30]
[326843905,1715508888453,-379.0,0.00042,120]
[326843906,1715508888477,-540.0,0.00042,120]
[326843907,1715508888502,-1068.42422523,0.00042192,30]
[326843908,1715508888528,-150.0,0.00042211,30]
[326843909,1715508888552,-205.05104193,0.0004225,120]
[326843910,1715508888577,-150.0,0.00042257,30]
[326843911,1715508888600,-363.09977033,0.00042293,30]
[326843912,1715508888623,-838.806266,0.000424,120]
[326843913,1715508888647,-363.09977033,0.00042606,30]
[326843914,1715508888670,-569.77989228,0.0004267,30]
[326843915,1715508888694,-298.36209534,0.00042698,120]
[326843916,1715508888718,-249.07457378,0.00042698,90]
[326843917,1715508888742,-330.32741634,0.00042698,90]
[326843918,1715508888766,-150.0,0.000427,30]
[326843919,1715508888790,-150.0,0.00042792,120]
[326843920,1715508888813,-300001.0,0.000428,60]
[326843921,1715508888840,-355.15352986,0.000429,30]
[326843922,1715508888864,-363.09977033,0.00042919,30]
[326843923,1715508888894,-50000.0,0.00043,33]
[326843924,1715508888917,-950.0,0.00043,120]
[326843925,1715508888941,-3226.59716757,0.00043,30]
[326843926,1715508888966,-2065.60706137,0.00043,120]
[326843927,1715508888991,-469.0088792,0.00043,30]
[326843928,1715508889015,-150.0,0.00043143,30]
[326843929,1715508889041,-150.0,0.00043143,30]
[326843930,1715508889068,-363.09977033,0.00043232,30]
[326843931,1715508889092,-363.09977033,0.00043545,30]
[326843932,1715508889116,-150.0,0.00043586,30]
[326843933,1715508889139,-2644.79,0.00043653,98]
[326843934,1715508889164,-150.0,0.00043842,30]
[326843935,1715508889188,-363.09977033,0.00043859,30]
[326843936,1715508889215,-50000.0,0.00044,34]
[326843937,1715508889238,-950.0,0.00044,120]
[326843938,1715508889261,-607.84717865,0.00044,30]
[326843939,1715508889285,-1678.254444,0.00044,44]
[326843940,1715508889309,-150.0,0.00044029,30]
[326843941,1715508889332,-363.09977033,0.00044172,30]
[326843942,1715508889356,-150.0,0.00044471,30]
[326843943,1715508889379,-363.09977033,0.00044485,30]
[326843944,1715508889402,-363.09977033,0.00044798,30]
[326843945,1715508889425,-165.37290696,0.000449,30]
[326843946,1715508889448,-229.47766858,0.000449,120]
[326843947,1715508889471,-2695.12713487,0.000449,120]
[326843948,1715508889494,-150.0,0.00044914,30]
[326843949,1715508889517,-150.03720591,0.0004498,30]
[326843950,1715508889544,-50000.0,0.00045,35]
[326843951,1715508889567,-1896.74487006,0.00045,30]
[326843952,1715508889590,-151.0,0.00045,120]
[326843953,1715508889614,-150.0,0.00045,120]
[326843954,1715508889637,-3018.32402118,0.00045,120]
[326843955,1715508889661,-500.0,0.00045,120]
[326843956,1715508889683,-151.0,0.00045,120]
[326843957,1715508889706,-202.70083703,0.00045,30]
[326843958,1715508889729,-626.40439834,0.00045,30]
[326843959,1715508889752,-850.0,0.00045,120]
[326843960,1715508889775,-150.0,0.00045,85]
[326843961,1715508889799,-452.999995,0.00045,120]
[326843962,1715508889828,-536.47928031,0.00045,45]
[326843963,1715508889851,-321.99513919,0.00045,30]
[326843964,1715508889876,-1548.81594251,0.00045,30]
[326843965,1715508889902,-2026.61652314,0.00045,30]
[326843966,1715508889926,-631.40199974,0.00045,120]
[326843967,1715508889951,-1000000.0,0.00045,50]
[326843968,1715508889978,-486.23402159,0.00045,120]
[326843969,1715508890002,-1000.0,0.00045,30]
[326843970,1715508890027,-25098.02720657,0.00045,60]
[326843971,1715508890053,-1137.67059234,0.00045,120]
[326843972,1715508890078,-1140.0,0.00045,120]
[326843973,1715508890103,-1348.85388761,0.00045,30]
[326843974,1715508890126,-1173.39556957,0.00045,30]
[326843975,1715508890151,-500.0,0.00045,30]
[326843976,1715508890178,-2000.0,0.00045,120]
[326843977,1715508890204,-2050.73383543,0.00045,120]
[326843978,1715508890428,-1010.0,0.00045,60]
[326843979,1715508890452,-1000.0,0.00045,45]
[326843980,1715508890477,-1000.0,0.00045,45]
[326843981,1715508890503,-1000.0,0.00045,45]
[326843982,1715508890527,-1000.0,0.00045,45]
[326843983,1715508890550,-1000.0,0.00045,45]
[326843984,1715508890578,-1000.0,0.00045,45]
[326843985,1715508890601,-1000.0,0.00045,45]
[326843986,1715508890624,-1000.0,0.00045,45]
[326843987,1715508890648,-1000.0,0.00045,45]
[326843988,1715508890672,-1000.0,0.00045,45]
[326843989,1715508890695,-24721.4870424,0.00045,120]
[326843990,1715508890718,-119242.81893908,0.00045,31]
[326843991,1715508890747,-299.0,0.00045,120]
[326843992,1715508890770,-178.0,0.00045,90]
[326843993,1715508890794,-363.09977033,0.00045111,30]
[326843994,1715508890817,-2573.6889,0.0004514,30]
[326843995,1715508890841,-150.0,0.00045357,30]
[326843996,1715508890865,-363.09977033,0.00045424,30]
[326843997,1715508890892,-150.0,0.00045474,30]
[326843998,1715508890915,-775.43509138,0.000455,120]
[326843999,1715508890940,-151.0,0.00045699,120]
[326844000,1715508890965,-363.09977033,0.00045737,30]
[326844001,1715508890988,-150.0,0.000458,30]
[326844002,1715508891013,-150.0,0.000458,30]
[326844003,1715508891037,-150.0,0.000458,30]
[326844004,1715508891060,-1582.22617887,0.00045888,60]
[326844005,1715508891085,-7639.04141372,0.000459,60]
[326844006,1715508891108,-700.0,0.00045972,30]
[326844007,1715508891132,-500.0,0.00045972,30]
[326844008,1715508891158,-500.0,0.00045972,30]
[326844009,1715508891182,-500.0,0.00045972,30]
[326844010,1715508891209,-50000.0,0.00046,36]
[326844011,1715508891233,-1000.0,0.00046,120]
[326844012,1715508891256,-750.0,0.00046,120]
[326844013,1715508891279,-978.55,0.00046,120]
[326844014,1715508891302,-1000.0,0.00046,30]
[326844015,1715508891325,-245.8,0.00046,96]
[326844016,1715508891348,-363.09977033,0.00046051,30]
[326844017,1715508891372,-151.0,0.00046164,120]
[326844018,1715508891395,-150.0,0.00046243,30]
[326844019,1715508891420,-700.0,0.00046246,30]
[326844020,1715508891444,-500.0,0.00046246,30]
[326844021,1715508891470,-363.09977033,0.00046364,30]
[326844022,1715508891494,-151.0,0.00046384,120]
[326844023,1715508891517,-521.49165724,0.0004652,30]
[326844024,1715508891542,-700.0,0.0004652,30]
[326844025,1715508891566,-500.0,0.0004652,30]
[326844026,1715508891589,-500.0,0.0004652,30]
[326844027,1715508891615,-208.24356442,0.000466,90]
[326844028,1715508891639,-363.09977033,0.00046677,30]
[326844029,1715508891664,-150.0,0.00046686,30]
[326844030,1715508891688,-178.0,0.00046769,90]
[326844031,1715508891712,-15097.81267564,0.0004678,30]
[326844032,1715508891735,-700.0,0.00046794,30]
[326844033,1715508891760,-500.0,0.00046794,30]
[326844034,1715508891785,-4042.60006588,0.000468,60]
[326844035,1715508891810,-392.62698648,0.000468,60]
[326844036,1715508891834,-2866.5,0.0004698,117]
[326844037,1715508891858,-405.0,0.00046986,120]
[326844038,1715508891884,-363.09977033,0.0004699,30]
[326844039,1715508891911,-50000.0,0.00047,37]
[326844040,1715508891935,-500.0,0.00047,120]
[326844041,1715508891961,-650.0,0.00047,120]
[326844042,1715508891984,-573.13252255,0.00047068,30]
[326844043,1715508892008,-700.0,0.00047068,30]
[326844044,1715508892032,-500.0,0.00047068,30]
[326844045,1715508892057,-151.0,0.00047068,120]
[326844046,1715508892081,-150.0,0.00047105,30]
[326844047,1715508892104,-1437.97,0.00047123,120]
[326844048,1715508892128,-289.31,0.00047123,120]
[326844049,1715508892150,-150.0,0.00047129,30]
[326844050,1715508892173,-851.13499346,0.000473,120]
[326844051,1715508892196,-363.09977033,0.00047303,30]
[326844052,1715508892219,-151.0,0.00047315,120]
[326844053,1715508892247,-150.0,0.00047324,120]
[326844054,1715508892271,-500.0,0.00047342,30]
[326844055,1715508892300,-54280.98992249,0.0004748,120]
[326844056,1715508892327,-150.0,0.00047571,30]
[326844057,1715508892352,-150.0,0.00047571,30]
[326844058,1715508892377,-700.0,0.00047616,30]
[326844059,1715508892401,-363.09977033,0.00047616,30]
[326844060,1715508892424,-151.0,0.00047753,120]
[326844061,1715508892448,-500.0,0.0004789,30]
[326844062,1715508892472,-363.09977033,0.00047929,30]
[326844063,1715508892501,-50000.0,0.00048,38]
[326844064,1715508892526,-1000.0,0.00048,120]
[326844065,1715508892551,-1000.0,0.00048,120]
[326844066,1715508892576,-650.0,0.00048,120]
[326844067,1715508892599,-534.69829196,0.00048,120]
[326844068,1715508892623,-150.33033562,0.00048,120]
[326844069,1715508892646,-1800.0,0.00048,80]
[326844070,1715508892671,-500.0,0.00048,30]
[326844071,1715508892695,-583.29462556,0.00048,90]
[326844072,1715508892719,-150.0,0.00048014,30]
[326844073,1715508892745,-700.0,0.00048164,30]
[326844074,1715508892770,-363.09977033,0.00048242,30]
[326844075,1715508892794,-500.0,0.00048438,30]
[326844076,1715508892817,-151.0,0.00048438,120]
[326844077,1715508892842,-150.0,0.00048457,30]
[326844078,1715508892866,-151.0,0.00048466,120]
[326844079,1715508892892,-16824.574,0.000485,120]
[326844080,1715508892916,-16824.574,0.000485,120]
[326844081,1715508893174,-16824.574,0.000485,120]
[326844082,1715508893199,-16824.575,0.000485,120]
[326844083,1715508893223,-6248.61,0.000485,120]
[326844084,1715508893248,-16824.574,0.000485,120]
[326844085,1715508893271,-6248.611,0.000485,120]
[326844086,1715508893294,-6248.61,0.000485,120]
[326844087,1715508893317,-6248.61,0.000485,120]
[326844088,1715508893340,-6248.61,0.000485,120]
[326844089,1715508893364,-1000000.0,0.000485,60]
[326844090,1715508893387,-151.661286,0.000485,49]
[326844091,1715508893414,-363.09977033,0.00048556,30]
[326844092,1715508893437,-158.0,0.000486,120]
[326844093,1715508893460,-700.0,0.00048712,30]
[326844094,1715508893484,-150.0,0.00048737,30]
[326844095,1715508893508,-1770.22942263,0.000488,120]
[326844096,1715508893532,-4450.0,0.000488,120]
[326844097,1715508893556,-358.04048606,0.000488,120]
[326844098,1715508893579,-284.61263391,0.000488,120]
[326844099,1715508893604,-233.28119331,0.0004884,120]
[326844100,1715508893627,-363.09977033,0.00048869,30]
[326844101,1715508893652,-150.0,0.000489,30]
[326844102,1715508893675,-194.346259,0.00048906,30]
[326844103,1715508893697,-194.346259,0.00048906,30]
[326844104,1715508893722,-170.041888,0.00048906,30]
[326844105,1715508893746,-170.041888,0.00048906,30]
[326844106,1715508893769,-202.396941,0.00048906,30]
[326844107,1715508893792,-202.396941,0.00048906,30]
[326844108,1715508893816,-500.0,0.00048986,30]
[326844109,1715508893844,-50000.0,0.00049,39]
[326844110,1715508893868,-1000.0,0.00049,120]
[326844111,1715508893895,-733.81414014,0.00049,30]
[326844112,1715508893918,-3180.46958852,0.00049,120]
[326844113,1715508893942,-1000.0,0.00049,120]
[326844114,1715508893969,-251.92870706,0.00049,120]
[326844115,1715508893992,-3000.0,0.00049,120]
[326844116,1715508894016,-367.40026765,0.00049,60]
[326844117,1715508894040,-10000.0,0.00049,90]
[326844118,1715508894066,-2000.0,0.00049,90]
[326844119,1715508894089,-2384.4724081,0.00049,120]
[326844120,1715508894114,-599.99999901,0.00049,30]
[326844121,1715508894138,-151.0,0.00049123,120]
[326844122,1715508894163,-363.09977033,0.00049182,30]
[326844123,1715508894187,-700.0,0.0004926,30]
[326844124,1715508894210,-335.54634951,0.0004931,120]
[326844125,1715508894235,-8805.98,0.00049315,30]
[326844126,1715508894259,-500.0,0.00049315,30]
[326844127,1715508894284,-2000.0,0.00049315,90]
[326844128,1715508894308,-1016.75,0.00049315,60]
[326844129,1715508894333,-3000.0,0.00049315,120]
[326844130,1715508894357,-2000.0,0.00049315,30]
[326844131,1715508896323,216.0,0.00049315,120]
[326844132,1715508896877,160.0,0.00049315,120]
[326844133,1715508898013,-30213.68282867,0.00030277,30]
[326844134,1715508898038,-1000.0,0.00030277,60]
[326844135,1715508898063,-160.0,0.00030277,30]
[326844136,1715508898086,-686.0,0.00030277,30]
[326844137,1715508898110,-351.14054218,0.00030277,30]
[326844138,1715508898133,-415.7785,0.00030277,30]
[326844139,1715508898157,-216.0,0.00030277,120]
[326844140,1715508898179,-522.42947144,0.00030277,60]
[326844141,1715508898203,-1028.91772401,0.00030277,30]
[326844142,1715508898226,-231.61820372,0.00030277,60]
[326844143,1715508898251,-4402.32910069,0.00030277,60]
[326844144,1715508898274,-236.82139303,0.00030277,120]
[326844145,1715508898297,-236.55698554,0.00030277,120]
[326844146,1715508898326,-375.96971581,0.00030277,120]
[326844147,1715508898350,-151.21476719,0.00030277,30]
[326844148,1715508898373,-210.53638544,0.00030277,120]
[326844149,1715508898398,-1000.0,0.00030277,30]
[326844150,1715508898422,-1586.0,0.00030277,30]
[326844151,1715508898445,-3150.0,0.00030277,120]
[326844152,1715508898765,-151656.46023794,0.00030277,30]
[326844153,1715508898803,-127877.21640185,0.00030277,30]
[326844154,1715508898826,-171524.2183692,0.00030277,30]
[326844155,1715508898849,-1817.19235361,0.00030277,30]
[326844156,1715508898874,-3000.0,0.00030277,30]
[326844157,1715508898901,-7136.07851728,0.00030277,30]
[326844158,1715508898925,-3510.49529558,0.00030277,30]
[326844159,1715508898950,-9994.60612787,0.00030277,30]
[326844160,1715508898975,-50000.0,0.00030277,30]
[326844161,1715508898999,-32795.42694087,0.00030277,30]
[326844162,1715508899022,-2865.35270308,0.00030277,30]
[326844163,1715508899045,-52450.77204024,0.00030277,30]
[326844164,1715508899069,-2378.12184263,0.00030277,30]
[326844165,1715508899093,-30702.82339703,0.00030277,30]
[326844166,1715508899116,-2506.67008438,0.00030277,30]
[326844167,1715508899140,-57997.35851126,0.00030277,30]
[326844168,1715508899164,-1652.45862036,0.00030277,30]
[326844169,1715508899190,-20000.0,0.00030277,120]
[326844170,1715508899216,-20000.0,0.00030277,120]
[326844171,1715508899239,-13873.27,0.00030277,120]
[326844172,1715508899264,-397.0,0.00030277,30]
[326844173,1715508899291,-81465.28478827,0.00030277,30]
[326844174,1715508899318,-200.0,0.00030277,30]
[326844175,1715508899344,-397.677958,0.00030277,30]
[326844176,1715508899370,-152.70985604,0.00030277,30]
[326844177,1715508899396,-152.70985604,0.00030277,30]
[326844178,1715508899420,-152.70985604,0.00030277,30]
[326844179,1715508899446,-152.70985604,0.00030277,30]
[326844180,1715508899470,-152.70985604,0.00030277,30]
[326844181,1715508899496,-152.70985604,0.00030277,30]
[326844182,1715508899520,-152.70985604,0.00030277,30]
[326844183,1715508899545,-152.70985604,0.00030277,30]
[326844184,1715508899567,-152.70985604,0.00030277,30]
[326844185,1715508899595,-152.70985604,0.00030277,30]
[326844186,1715508899620,-152.70985604,0.00030277,30]
[326844187,1715508899644,-152.70985604,0.00030277,30]
[326844188,1715508899671,-152.70985604,0.00030277,30]
[326844189,1715508899695,-152.70985604,0.00030277,30]
[326844190,1715508899721,-152.70985604,0.00030277,30]
[326844191,1715508899746,-152.70985604,0.00030277,30]
[326844192,1715508899772,-152.70985604,0.00030277,30]
[326844193,1715508899797,-152.70985604,0.00030277,30]
[326844194,1715508899826,-152.70985604,0.00030277,30]
[326844195,1715508899850,-152.70985604,0.00030277,30]
[326844196,1715508899880,-152.7098561,0.00030277,30]
[326844197,1715508906061,192.85725473,0.00045,30]
[326844198,1715508908324,150.0,0.00045,30]
[326844199,1715508910236,1025.70375457,0.000389,30]
[326844200,1715508917084,2146.26141175,0.00042,30]
[326844218,1715509831576,-262.86247652,0.00011616,2]
[326844220,1715509831588,-64.18352339,0.00011617,2]
[326844227,1715509831701,-90.81647661,0.00011617,2]
[326844228,1715509831711,-2274.89906602,0.00011618,2]
[326844229,1715509831722,-641.23338118,0.00011618,2]
[326844230,1715509831731,-150.0,0.00011618,2]
[326844231,1715509831740,-150.0,0.00011618,2]
[326844232,1715509831749,-4739.38262032,0.00011619,2]
[326844233,1715509831758,-606.39039502,0.00011619,2]
[326844234,1715509831769,-1319.092,0.00011619,2]
[326844235,1715509831780,-1245.53009067,0.00011619,2]
[326844236,1715509831925,-1204.46990933,0.00011619,2]
[326844237,1715509831936,-3987.48005743,0.00011619,2]
[326844238,1715509831946,-1746.15889352,0.00011635,2]
[326844258,1715509837632,-40.76161197,0.00011635,2]
[326844260,1715509837641,-164.06184753,0.0001164,2]
[326844261,1715509837651,-19367.23,0.00011673,2]
[326844262,1715509837660,-637.44,0.00011683,2]
[326844263,1715509837670,-808.0,0.00011697,2]
[326844264,1715509837679,-352.51,0.00011697,2]
[326844265,1715509837688,-250.0,0.00011698,2]
[326844266,1715509837698,-192.0,0.00011709,2]
[326844267,1715509837706,-250.0,0.00011721,2]
[326844268,1715509837716,-182.0,0.0001174,2]
[326844269,1715509837725,-4368.24520142,0.00011883,2]
[326844270,1715509837734,-155.0,0.00012099,2]
[326844271,1715509837743,-300.0,0.000121,4]
[326844272,1715509837752,-700.0,0.000122,4]
[326844273,1715509837762,-2019.6839,0.00012221,2]
[326844274,1715509837771,-164.06184751,0.0001226,2]
[326844275,1715509837781,-1100.0,0.000123,4]
[326844276,1715509837790,-169.14763393,0.00012324,3]
[326844277,1715509838077,-1136.92665667,0.00012327,2]
[326844278,1715509838092,-499.99,0.00012327,2]
[326844279,1715509838102,-1500.0,0.000124,4]
[326844280,1715509838111,-181.48,0.00012437,2]
[326844281,1715509838120,-1800.0,0.000125,4]
[326844282,1715509838129,-831.98,0.00012541,2]
[326844283,1715509838138,-868.75,0.00012541,2]
[326844284,1715509838148,-300.0,0.000126,4]
[326844285,1715509838157,-300.0,0.000127,4]
[326844286,1715509838166,-210.0,0.0001278,2]
[326844287,1715509838177,-181.63829139,0.00012798,2]
[326844288,1715509838188,-300.0,0.000128,4]
[326844289,1715509838197,-26692.22016301,0.00012849,2]
[326844290,1715509838206,-173.25302519,0.0001285,2]
[326844291,1715509838216,-540.4798,0.0001288,2]
[326844292,1715509838225,-1107.68760328,0.0001288,2]
[326844293,1715509838235,-173.54433881,0.0001288,2]
[326844294,1715509838245,-172.54228539,0.0001288,2]
[326844295,1715509838256,-1000.0,0.0001288,2]
[326844296,1715509838265,-164.06184751,0.0001288,2]
[326844297,1715509838274,-208.35180882,0.0001288,2]
[326844298,1715509838283,-193.87795131,0.0001288,2]
[326844299,1715509838292,-1107.68760317,0.00012882,2]
[326844300,1715509838301,-200.0,0.00012883,2]
[326844301,1715509838311,-1107.68760317,0.00012884,2]
[326844302,1715509838321,-1107.68760317,0.00012885,2]
[326844303,1715509838331,-500.0,0.00012886,2]
[326844304,1715509838344,-1107.68760317,0.00012887,2]
[326844305,1715509838354,-1107.68760317,0.00012889,2]
[326844306,1715509838363,-208.3518088,0.0001289,2]
[326844307,1715509838373,-1107.68760317,0.00012891,2]
[326844308,1715509838382,-1107.68760317,0.00012893,2]
[326844309,1715509838392,-1107.68760317,0.00012895,2]
[326844310,1715509838401,-1107.68760317,0.00012896,2]
[326844311,1715509838410,-1107.68760317,0.00012898,2]
[326844312,1715509838421,-1107.68760317,0.000129,2]
[326844313,1715509838431,-300.0,0.000129,4]
[326844314,1715509838440,-208.3518088,0.000129,2]
[326844315,1715509838449,-151.48,0.0001297,2]
[326844316,1715509838459,-229.12390631,0.00012978,2]
[326844317,1715509838468,-158.65016909,0.00012978,2]
[326844318,1715509838477,-447.77909546,0.00012978,2]
[326844319,1715509838486,-317.27575734,0.00012978,2]
[326844320,1715509838495,-155.91324332,0.00012978,2]
[326844321,1715509838505,-265.97975764,0.00012978,2]
[326844322,1715509838515,-5539.88580712,0.00012979,2]
[326844323,1715509838526,-478.46201799,0.00012979,2]
[326844324,1715509838535,-535.40215619,0.00012979,2]
[326844325,1715509838544,-429.89465358,0.00012979,2]
[326844326,1715509838553,-263.45763516,0.00012979,2]
[326844327,1715509838562,-218.41440426,0.00012979,2]
[326844328,1715509838571,-672.59646107,0.00012979,2]
[326844329,1715509838580,-206.344491,0.00012979,2]
[326844330,1715509838594,-300.02,0.00012979,2]
[326844331,1715509838603,-1502.82534942,0.00012979,2]
[326844332,1715509838611,-95718.89382734,0.0001298,2]
[326844333,1715509838621,-623580.04981057,0.0001298,2]
[326844334,1715509838675,-845.02,0.0001298,2]
[326844335,1715509838715,-378.88143139,0.0001298,2]
[326844336,1715509838726,-3658.436738,0.0001298,2]
[326844339,1715509839902,-5540.81783699,0.0001298,2]
[326844340,1715509839915,-3966.75954624,0.0001298,2]
[326844341,1715509840177,-1934.40520351,0.0001298,2]
[326844342,1715509840189,-315.6,0.0001298,2]
[326844343,1715509840201,-293.42592338,0.0001298,2]
[326844344,1715509840319,-497.0,0.00012979,2]
[326844362,1715509842896,-630.11901206,0.00012979,2]
[326844363,1715509842906,-9271.86860716,0.0001298,2]
[326844412,1715509843885,-0.00270214,0.0001298,2]
[326844414,1715509843897,-3204.01990657,0.0001298,2]
[326844417,1715509843908,-566.11,0.0001298,2]
[326844419,1715509843919,-779.66948917,0.0001298,2]
[326844421,1715509843931,-385.83766361,0.0001298,2]
[326844430,1715509844007,-670.14303817,0.0001298,2]
[326844433,1715509844019,-6153.16665058,0.0001298,2]
[326844435,1715509844031,-312.8125,0.0001298,2]
[326844437,1715509844043,-4039.99778183,0.0001298,2]
[326844441,1715509844069,-1835.89565874,0.0001298,2]
[326844443,1715509844080,-196301.73886206,0.0001298,2]
[326844445,1715509844094,-2049.94738599,0.0001298,2]